[Event "Live Chess"]
[Site "Chess.com"]
[Date "2023.05.20"]
[Round "-"]
[White "ShanthamGrarks"]
[Black "Daniel_Gliddon_FA"]
[Result "1-0"]
[WhiteElo "1979"]
[BlackElo "1229"]
[TimeControl "300"]
[EndTime "15:58:55 PDT"]
[Termination "ShanthamGrarks won by resignation"]

1. d4 {[%clk 0:04:56.9]} 1... Nf6 {[%clk 0:04:56.2]} 2. Nc3 {[%clk 0:04:54.9]}
2... g6 {[%clk 0:04:52.5]} 3. e4 {[%clk 0:04:51.7]} 3... Bg7 {[%clk 0:04:47.5]}
4. e5 {[%clk 0:04:48.6]} 4... Ng8 {[%clk 0:04:41.1]} 5. f4 {[%clk 0:04:48]} 5...
d6 {[%clk 0:04:38.7]} 6. Nf3 {[%clk 0:04:47]} 6... Bg4 {[%clk 0:04:30]} 7. Bc4
{[%clk 0:04:45.4]} 7... e6 {[%clk 0:04:26.6]} 8. O-O {[%clk 0:04:42.2]} 8... d5
{[%clk 0:04:25.2]} 9. Bd3 {[%clk 0:04:39.6]} 9... Nc6 {[%clk 0:04:22.4]} 10. Ne2
{[%clk 0:04:37.9]} 10... Nge7 {[%clk 0:04:18]} 11. c3 {[%clk 0:04:36.5]} 11...
Qd7 {[%clk 0:04:07.4]} 12. h3 {[%clk 0:04:35.2]} 12... Bxf3 {[%clk 0:04:04.5]}
13. Rxf3 {[%clk 0:04:33.6]} 13... O-O-O {[%clk 0:04:01.9]} 14. Ng3 {[%clk
0:04:25.8]} 14... f6 {[%clk 0:03:59.1]} 15. Be3 {[%clk 0:04:20.4]} 15... f5
{[%clk 0:03:53.4]} 16. a4 {[%clk 0:04:11.5]} 16... h5 {[%clk 0:03:42.2]} 17. b4
{[%clk 0:04:04.3]} 17... h4 {[%clk 0:03:40.4]} 18. Nf1 {[%clk 0:03:57.3]} 18...
Bh6 {[%clk 0:03:35.9]} 19. a5 {[%clk 0:03:49.4]} 19... Rdg8 {[%clk 0:03:28.6]}
20. b5 {[%clk 0:03:47.9]} 20... Nd8 {[%clk 0:03:23.5]} 21. Qe2 {[%clk
0:03:43.3]} 21... g5 {[%clk 0:03:15.2]} 22. fxg5 {[%clk 0:03:40.5]} 22... Bxg5
{[%clk 0:03:13.9]} 23. Bxg5 {[%clk 0:03:40.1]} 23... Rxg5 {[%clk 0:03:08.3]} 24.
b6 {[%clk 0:03:33.5]} 24... Ng6 {[%clk 0:02:58.9]} 25. bxa7 {[%clk 0:03:25.5]}
25... Nc6 {[%clk 0:02:38.5]} 26. a8=Q+ {[%clk 0:03:21.9]} 26... Nb8 {[%clk
0:02:37]} 27. Ba6 {[%clk 0:03:14.9]} 27... c6 {[%clk 0:02:26.1]} 28. Rb1 {[%clk
0:03:11.6]} 28... Qe7 {[%clk 0:02:09.2]} 29. Rxb7 {[%clk 0:03:03.6]} 1-0

[Event "Live Chess"]
[Site "Chess.com"]
[Date "2023.05.20"]
[Round "-"]
[White "AlanPaling"]
[Black "CeladonFish"]
[Result "1-0"]
[WhiteElo "1311"]
[BlackElo "1127"]
[TimeControl "300"]
[EndTime "15:58:57 PDT"]
[Termination "AlanPaling won by resignation"]

1. c4 {[%clk 0:04:58.1]} 1... Nf6 {[%clk 0:04:58.5]} 2. Nc3 {[%clk 0:04:56.7]}
2... g6 {[%clk 0:04:58]} 3. g3 {[%clk 0:04:55.6]} 3... d6 {[%clk 0:04:57.6]} 4.
Bg2 {[%clk 0:04:54.4]} 4... Bg7 {[%clk 0:04:57.2]} 5. e4 {[%clk 0:04:52.9]} 5...
O-O {[%clk 0:04:56.7]} 6. Nge2 {[%clk 0:04:51.7]} 6... Nc6 {[%clk 0:04:53.6]} 7.
O-O {[%clk 0:04:50.6]} 7... Nh5 {[%clk 0:04:52.2]} 8. g4 {[%clk 0:04:44.5]} 8...
Bxg4 {[%clk 0:04:48.4]} 9. h3 {[%clk 0:04:41.5]} 9... Bxe2 {[%clk 0:04:46.5]}
10. Qxe2 {[%clk 0:04:39.3]} 10... Nd4 {[%clk 0:04:43.2]} 11. Qd3 {[%clk
0:04:34]} 11... c5 {[%clk 0:04:39.2]} 12. Nd5 {[%clk 0:04:29.8]} 12... e6 {[%clk
0:04:34.8]} 13. Ne3 {[%clk 0:04:25.8]} 13... Nf4 {[%clk 0:04:27.8]} 14. Qa3
{[%clk 0:04:22.7]} 14... Nfe2+ {[%clk 0:04:20.1]} 15. Kh2 {[%clk 0:04:19]} 15...
Bh6 {[%clk 0:04:07.5]} 16. Qd3 {[%clk 0:04:02.5]} 16... Bxe3 {[%clk 0:04:03.3]}
17. dxe3 {[%clk 0:03:58.1]} 17... Qc7 {[%clk 0:03:51.5]} 18. exd4 {[%clk
0:03:51.3]} 18... d5+ {[%clk 0:03:47.2]} 19. e5 {[%clk 0:03:45.9]} 19... Nxd4
{[%clk 0:03:43.5]} 20. f4 {[%clk 0:03:43.5]} 20... dxc4 {[%clk 0:03:38.8]} 21.
Qxc4 {[%clk 0:03:40.7]} 21... b5 {[%clk 0:03:28.9]} 22. Qd3 {[%clk 0:03:32.4]}
22... Rad8 {[%clk 0:03:22.5]} 23. Qe4 {[%clk 0:03:28.4]} 23... a5 {[%clk
0:02:58.9]} 24. Be3 {[%clk 0:03:26.9]} 24... b4 {[%clk 0:02:48.2]} 25. Rac1
{[%clk 0:03:25.2]} 25... f5 {[%clk 0:02:26.3]} 26. exf6 {[%clk 0:03:21.2]} 26...
Rxf6 {[%clk 0:02:25.1]} 27. Bxd4 {[%clk 0:03:19.4]} 27... Rxd4 {[%clk 0:02:21]}
28. Qxd4 {[%clk 0:03:15.2]} 28... Rxf4 {[%clk 0:02:02.9]} 29. Rxf4 {[%clk
0:03:05.6]} 1-0

[Event "Live Chess"]
[Site "Chess.com"]
[Date "2023.05.20"]
[Round "-"]
[White "mpersander"]
[Black "raminguy"]
[Result "0-1"]
[WhiteElo "1018"]
[BlackElo "1960"]
[TimeControl "300"]
[EndTime "15:59:07 PDT"]
[Termination "raminguy won by checkmate"]

1. e4 {[%clk 0:04:55.6]} 1... e5 {[%clk 0:04:59]} 2. Nf3 {[%clk 0:04:53.8]} 2...
Nc6 {[%clk 0:04:58.5]} 3. d4 {[%clk 0:04:52.8]} 3... exd4 {[%clk 0:04:57.3]} 4.
Nxd4 {[%clk 0:04:52]} 4... Qf6 {[%clk 0:04:56.2]} 5. Nxc6 {[%clk 0:04:41.1]}
5... Bc5 {[%clk 0:04:55.7]} 6. Qd2 {[%clk 0:04:04.4]} 6... dxc6 {[%clk
0:04:54.1]} 7. Qf4 {[%clk 0:03:58.8]} 7... Be6 {[%clk 0:04:43.1]} 8. e5 {[%clk
0:03:48.2]} 8... Qxf4 {[%clk 0:04:27.5]} 9. Bxf4 {[%clk 0:03:46.6]} 9... O-O-O
{[%clk 0:04:26.7]} 10. Nd2 {[%clk 0:03:43]} 10... h6 {[%clk 0:04:09.6]} 11. a3
{[%clk 0:03:37.5]} 11... g5 {[%clk 0:04:07.8]} 12. Bg3 {[%clk 0:03:31.7]} 12...
a6 {[%clk 0:03:53.1]} 13. O-O-O {[%clk 0:03:29.9]} 13... Ne7 {[%clk 0:03:50.6]}
14. Be2 {[%clk 0:03:07.7]} 14... Nf5 {[%clk 0:03:47.9]} 15. Ne4 {[%clk
0:02:54.3]} 15... Nxg3 {[%clk 0:03:41.9]} 16. hxg3 {[%clk 0:02:50.4]} 16... Bb6
{[%clk 0:03:30.7]} 17. f4 {[%clk 0:02:39.8]} 17... gxf4 {[%clk 0:03:27]} 18.
gxf4 {[%clk 0:02:38.4]} 18... Be3+ {[%clk 0:03:22.9]} 19. Kb1 {[%clk 0:02:34.2]}
19... Bxf4 {[%clk 0:03:21.2]} 20. Nc5 {[%clk 0:02:09.8]} 20... Rxd1+ {[%clk
0:02:59.5]} 21. Rxd1 {[%clk 0:02:07.9]} 21... Bxe5 {[%clk 0:02:50.5]} 22. Nxe6
{[%clk 0:02:06.1]} 22... fxe6 {[%clk 0:02:47.8]} 23. Bg4 {[%clk 0:02:04]} 23...
Re8 {[%clk 0:02:30.6]} 24. Re1 {[%clk 0:02:02.8]} 24... Bg3 {[%clk 0:02:27.4]}
25. Rxe6 {[%clk 0:01:56.2]} 25... Rxe6 {[%clk 0:02:26.4]} 26. Bxe6+ {[%clk
0:01:54.9]} 26... Kd8 {[%clk 0:02:25.3]} 27. c3 {[%clk 0:01:47]} 27... Ke7
{[%clk 0:02:24.1]} 28. Bh3 {[%clk 0:01:44.7]} 28... b6 {[%clk 0:02:22.3]} 29.
Kc2 {[%clk 0:01:43.3]} 29... a5 {[%clk 0:02:20.4]} 30. Kd3 {[%clk 0:01:41.5]}
30... Bf4 {[%clk 0:02:13.8]} 31. Ke4 {[%clk 0:01:39.5]} 31... Bc1 {[%clk
0:02:12.8]} 32. b3 {[%clk 0:01:38.1]} 32... Bxa3 {[%clk 0:02:11.6]} 33. Kf5
{[%clk 0:01:35.9]} 33... Bb2 {[%clk 0:02:08.6]} 34. Kg6 {[%clk 0:01:33.9]} 34...
Bc1 {[%clk 0:02:06.9]} 35. g4 {[%clk 0:01:24.8]} 35... Kd6 {[%clk 0:02:04.9]}
36. Bg2 {[%clk 0:01:23.1]} 36... c5 {[%clk 0:02:01.6]} 37. Kf5 {[%clk
0:01:13.1]} 37... Bd2 {[%clk 0:01:58.2]} 38. c4 {[%clk 0:01:10.9]} 38... c6
{[%clk 0:01:57.1]} 39. Ke4 {[%clk 0:01:01.1]} 39... b5 {[%clk 0:01:55.2]} 40.
Kd3 {[%clk 0:00:58.2]} 40... Bg5 {[%clk 0:01:52.6]} 41. Be4 {[%clk 0:00:53]}
41... a4 {[%clk 0:01:45.4]} 42. Kc3 {[%clk 0:00:40.7]} 42... a3 {[%clk
0:01:38.8]} 43. Kc2 {[%clk 0:00:32.7]} 43... Be3 {[%clk 0:01:24.9]} 44. Kb1
{[%clk 0:00:27.7]} 44... Bd4 {[%clk 0:01:19.5]} 45. Ka2 {[%clk 0:00:26.3]} 45...
Bb2 {[%clk 0:01:18.5]} 46. cxb5 {[%clk 0:00:19.2]} 46... cxb5 {[%clk 0:01:17.2]}
47. Bf3 {[%clk 0:00:16.4]} 47... Ke5 {[%clk 0:01:10.8]} 48. Bc6 {[%clk
0:00:14.6]} 48... c4 {[%clk 0:00:57]} 49. Bxb5 {[%clk 0:00:13.2]} 49... c3
{[%clk 0:00:56.2]} 50. Bd3 {[%clk 0:00:10.9]} 50... Kd4 {[%clk 0:00:55.4]} 51.
Bf5 {[%clk 0:00:09.7]} 51... Ke3 {[%clk 0:00:54.7]} 52. Bg6 {[%clk 0:00:08.3]}
52... Kd2 {[%clk 0:00:54]} 53. Bf5 {[%clk 0:00:07.5]} 53... c2 {[%clk
0:00:53.2]} 54. Bxc2 {[%clk 0:00:06.3]} 54... Kxc2 {[%clk 0:00:53.1]} 55. b4
{[%clk 0:00:05.4]} 55... Kc3 {[%clk 0:00:49.6]} 56. b5 {[%clk 0:00:04.7]} 56...
Kb4 {[%clk 0:00:48.8]} 57. b6 {[%clk 0:00:04]} 57... Be5 {[%clk 0:00:47.6]} 58.
b7 {[%clk 0:00:03]} 58... Bd6 {[%clk 0:00:43]} 59. Ka1 {[%clk 0:00:02.1]} 59...
Kb3 {[%clk 0:00:40.3]} 60. Kb1 {[%clk 0:00:01]} 60... a2+ {[%clk 0:00:38.8]} 61.
Ka1 {[%clk 0:00:00.2]} 61... Be5# {[%clk 0:00:38]} 0-1

[Event "Live Chess"]
[Site "Chess.com"]
[Date "2023.05.20"]
[Round "-"]
[White "EdenHazard8"]
[Black "1600x"]
[Result "0-1"]
[WhiteElo "2050"]
[BlackElo "1805"]
[TimeControl "300"]
[EndTime "15:59:09 PDT"]
[Termination "1600x won by resignation"]

1. e4 {[%clk 0:04:58.8]} 1... e5 {[%clk 0:04:57.2]} 2. Nf3 {[%clk 0:04:54.9]}
2... Nf6 {[%clk 0:04:51.7]} 3. Nxe5 {[%clk 0:04:52.9]} 3... d6 {[%clk
0:04:49.8]} 4. Nd3 {[%clk 0:04:52.3]} 4... c5 {[%clk 0:04:45.6]} 5. Nc3 {[%clk
0:04:48.9]} 5... b5 {[%clk 0:04:39.6]} 6. Nxb5 {[%clk 0:04:46.4]} 6... Nc6
{[%clk 0:04:36.5]} 7. Nc3 {[%clk 0:04:45.2]} 7... Qe7 {[%clk 0:04:30.2]} 8. f3
{[%clk 0:04:42.2]} 8... d5 {[%clk 0:04:27.1]} 9. Qe2 {[%clk 0:04:40.9]} 9... Nd4
{[%clk 0:04:20.4]} 10. Qd1 {[%clk 0:04:37.8]} 10... dxe4 {[%clk 0:04:18.2]} 11.
fxe4 {[%clk 0:04:36.3]} 11... Nxe4 {[%clk 0:04:17]} 12. Nxe4 {[%clk 0:04:35.4]}
12... Bb7 {[%clk 0:04:13.7]} 13. Be2 {[%clk 0:04:32.6]} 13... Qxe4 {[%clk
0:04:10.4]} 14. Rg1 {[%clk 0:04:23]} 14... Be7 {[%clk 0:04:05.4]} 15. c3 {[%clk
0:04:20.9]} 15... Bh4+ {[%clk 0:04:02]} 16. g3 {[%clk 0:04:18.9]} 16... Nf3+
{[%clk 0:03:58.2]} 17. Kf2 {[%clk 0:04:17.9]} 17... Nxh2 {[%clk 0:03:51.6]} 18.
gxh4 {[%clk 0:03:56.2]} 18... Qxh4+ {[%clk 0:03:48.6]} 19. Rg3 {[%clk
0:03:54.5]} 19... Rc8 {[%clk 0:03:42.4]} 20. Bg4 {[%clk 0:03:50.7]} 20... Rc6
{[%clk 0:03:38.1]} 21. Qa4 {[%clk 0:03:44.6]} 21... O-O {[%clk 0:03:32.7]} 22.
Ne5 {[%clk 0:03:40.7]} 22... Rf6+ {[%clk 0:03:24.6]} 23. Nf3 {[%clk 0:03:27.2]}
23... Kh8 {[%clk 0:03:03.1]} 24. Kg2 {[%clk 0:03:12.6]} 24... Nxf3 {[%clk
0:02:56.8]} 25. Bxf3 {[%clk 0:03:04.8]} 25... Bxf3+ {[%clk 0:02:49.7]} 26. Rxf3
{[%clk 0:03:03.6]} 26... Rg6+ {[%clk 0:02:35.3]} 27. Kf1 {[%clk 0:02:58.8]}
27... Qh1+ {[%clk 0:02:31]} 28. Ke2 {[%clk 0:02:57.3]} 28... Qg2+ {[%clk
0:02:25.7]} 29. Rf2 {[%clk 0:02:52.3]} 29... Re6+ {[%clk 0:02:23.4]} 30. Kd3
{[%clk 0:02:49.3]} 30... Qxf2 {[%clk 0:02:13.5]} 31. Kc2 {[%clk 0:02:47.8]}
31... Qf5+ {[%clk 0:02:11.1]} 32. d3 {[%clk 0:02:46.2]} 32... Rd8 {[%clk
0:02:03.9]} 33. Qc4 {[%clk 0:02:39.9]} 33... g6 {[%clk 0:02:01.7]} 34. Bd2
{[%clk 0:02:38.2]} 34... Red6 {[%clk 0:01:58.9]} 35. Re1 {[%clk 0:02:34.2]}
35... Rxd3 {[%clk 0:01:57.5]} 36. Re8+ {[%clk 0:02:32.3]} 36... Kg7 {[%clk
0:01:55]} 37. Qxd3 {[%clk 0:02:32.2]} 37... Qxd3+ {[%clk 0:01:53.1]} 0-1

[Event "Live Chess"]
[Site "Chess.com"]
[Date "2023.05.20"]
[Round "-"]
[White "Tushinskiy"]
[Black "mikkyb4"]
[Result "1-0"]
[WhiteElo "2183"]
[BlackElo "1031"]
[TimeControl "300"]
[EndTime "15:59:11 PDT"]
[Termination "Tushinskiy won by resignation"]

1. d4 {[%clk 0:04:49.6]} 1... g6 {[%clk 0:04:58.9]} 2. c3 {[%clk 0:04:49.1]}
2... Bg7 {[%clk 0:04:57.8]} 3. Nf3 {[%clk 0:04:47.3]} 3... d6 {[%clk 0:04:56.9]}
4. Bf4 {[%clk 0:04:45.9]} 4... Nc6 {[%clk 0:04:54.3]} 5. Bg3 {[%clk 0:04:45.2]}
5... e5 {[%clk 0:04:43.1]} 6. dxe5 {[%clk 0:04:44.1]} 6... dxe5 {[%clk 0:04:41]}
7. Qxd8+ {[%clk 0:04:39.4]} 7... Nxd8 {[%clk 0:04:39.4]} 8. Nxe5 {[%clk
0:04:37.8]} 8... Ne7 {[%clk 0:04:38.2]} 9. Nd2 {[%clk 0:04:35.2]} 9... Bf5
{[%clk 0:04:36.1]} 10. e4 {[%clk 0:04:33.8]} 10... Be6 {[%clk 0:04:30.4]} 11.
Be2 {[%clk 0:04:27.6]} 11... Ndc6 {[%clk 0:04:26.5]} 12. Nxc6 {[%clk 0:04:26.2]}
12... Nxc6 {[%clk 0:04:24.8]} 13. Bxc7 {[%clk 0:04:24]} 13... O-O {[%clk
0:04:21.5]} 14. Bg3 {[%clk 0:04:22.9]} 14... Rfe8 {[%clk 0:04:12]} 15. f3 {[%clk
0:04:21.5]} 15... Rad8 {[%clk 0:04:07.8]} 16. Nb3 {[%clk 0:04:19.4]} 16... Ne5
{[%clk 0:03:55]} 17. Rd1 {[%clk 0:04:14.2]} 17... Nc4 {[%clk 0:03:47.8]} 18.
Bxc4 {[%clk 0:04:12.8]} 18... Bxc4 {[%clk 0:03:45.5]} 19. Kf2 {[%clk 0:04:11]}
19... Bh6 {[%clk 0:03:14.7]} 20. Rhe1 {[%clk 0:03:59.8]} 20... Rd2+ {[%clk
0:03:11.8]} 21. Nxd2 {[%clk 0:03:57.7]} 21... Bxd2 {[%clk 0:03:09.7]} 22. Rxd2
{[%clk 0:03:57.6]} 1-0

[Event "Live Chess"]
[Site "Chess.com"]
[Date "2023.05.20"]
[Round "-"]
[White "NAZRIZ1977"]
[Black "fso"]
[Result "0-1"]
[WhiteElo "2049"]
[BlackElo "2234"]
[TimeControl "300"]
[EndTime "15:59:16 PDT"]
[Termination "fso won by resignation"]

1. d4 {[%clk 0:04:56.8]} 1... Nf6 {[%clk 0:04:46.8]} 2. Nc3 {[%clk 0:04:55.2]}
2... g6 {[%clk 0:04:31.2]} 3. e4 {[%clk 0:04:53.7]} 3... d5 {[%clk 0:04:28.8]}
4. e5 {[%clk 0:04:49.5]} 4... Ne4 {[%clk 0:04:28]} 5. Bd3 {[%clk 0:04:47.6]}
5... Nxc3 {[%clk 0:04:14.2]} 6. bxc3 {[%clk 0:04:46.1]} 6... Bg7 {[%clk
0:04:11.6]} 7. f4 {[%clk 0:04:37.6]} 7... Nd7 {[%clk 0:04:05]} 8. e6 {[%clk
0:04:33.2]} 8... fxe6 {[%clk 0:04:02]} 9. Qg4 {[%clk 0:04:30]} 9... Nf6 {[%clk
0:03:59.3]} 10. Bxg6+ {[%clk 0:04:28.9]} 10... hxg6 {[%clk 0:03:55.4]} 11. Qxg6+
{[%clk 0:04:27.1]} 11... Kf8 {[%clk 0:03:52.7]} 12. Nf3 {[%clk 0:04:26.5]} 12...
Qe8 {[%clk 0:03:44.1]} 13. Qg3 {[%clk 0:04:20.7]} 13... Ne4 {[%clk 0:03:39.6]}
14. Qg4 {[%clk 0:04:11.4]} 14... e5 {[%clk 0:03:35.3]} 15. f5 {[%clk 0:04:07.6]}
15... exd4 {[%clk 0:03:27.2]} 16. Nh4 {[%clk 0:04:02.3]} 16... Qh5 {[%clk
0:02:55.3]} 17. Qf4 {[%clk 0:03:49.2]} 17... Qxh4+ {[%clk 0:02:48.4]} 0-1

[Event "Live Chess"]
[Site "Chess.com"]
[Date "2023.05.20"]
[Round "-"]
[White "Duke_of_Bebington"]
[Black "DaveL5678"]
[Result "1-0"]
[WhiteElo "1580"]
[BlackElo "1022"]
[TimeControl "300"]
[EndTime "15:59:19 PDT"]
[Termination "Duke_of_Bebington won on time"]

1. e4 {[%clk 0:04:56.5]} 1... c6 {[%clk 0:04:57.9]} 2. d4 {[%clk 0:04:54.9]}
2... d5 {[%clk 0:04:56.9]} 3. Nc3 {[%clk 0:04:53.4]} 3... e6 {[%clk 0:04:50.2]}
4. Be2 {[%clk 0:04:41.6]} 4... Bd7 {[%clk 0:04:44]} 5. f3 {[%clk 0:04:40.4]}
5... c5 {[%clk 0:04:39.1]} 6. Be3 {[%clk 0:04:36.7]} 6... cxd4 {[%clk
0:04:35.8]} 7. Bxd4 {[%clk 0:04:34.6]} 7... Nc6 {[%clk 0:04:31.3]} 8. exd5
{[%clk 0:04:18.8]} 8... Nxd4 {[%clk 0:04:27]} 9. Qxd4 {[%clk 0:04:16.8]} 9...
Nf6 {[%clk 0:04:06.8]} 10. dxe6 {[%clk 0:04:13.6]} 10... Bxe6 {[%clk 0:04:05.4]}
11. Qxd8+ {[%clk 0:04:11.5]} 11... Rxd8 {[%clk 0:04:04.5]} 12. Nh3 {[%clk
0:04:04.7]} 12... Bc5 {[%clk 0:03:58.7]} 13. Nf4 {[%clk 0:04:00]} 13... Bf5
{[%clk 0:03:41.7]} 14. Nd3 {[%clk 0:03:54]} 14... Kf8 {[%clk 0:03:37.1]} 15.
O-O-O {[%clk 0:03:49.1]} 15... Be3+ {[%clk 0:03:25.8]} 16. Kb1 {[%clk
0:03:47.9]} 16... g6 {[%clk 0:03:19.6]} 17. Rhe1 {[%clk 0:03:38.7]} 17... Kg7
{[%clk 0:03:13.4]} 18. Bf1 {[%clk 0:03:28.2]} 18... Bb6 {[%clk 0:03:01.8]} 19.
Ne4 {[%clk 0:03:06.6]} 19... Nxe4 {[%clk 0:02:50.6]} 20. fxe4 {[%clk 0:03:05.3]}
20... Bg4 {[%clk 0:02:42.5]} 21. Be2 {[%clk 0:02:58.8]} 21... Be6 {[%clk
0:02:32.8]} 22. Bf3 {[%clk 0:02:47.7]} 22... Rhe8 {[%clk 0:02:09.1]} 23. Nf4
{[%clk 0:02:39.2]} 23... Rxd1+ {[%clk 0:01:57.9]} 24. Rxd1 {[%clk 0:02:37.5]}
24... Bc4 {[%clk 0:01:52.1]} 25. Rd7 {[%clk 0:02:28.7]} 25... Ba6 {[%clk
0:01:35]} 26. Nd5 {[%clk 0:02:25.6]} 26... Be3 {[%clk 0:01:25.8]} 27. Nxe3
{[%clk 0:02:23.7]} 27... Kh6 {[%clk 0:01:18.3]} 28. Rxf7 {[%clk 0:02:20.2]}
28... Rd8 {[%clk 0:01:17.5]} 29. Kc1 {[%clk 0:02:17]} 29... Bb5 {[%clk
0:01:09.9]} 30. h4 {[%clk 0:02:12]} 30... Be8 {[%clk 0:01:00.5]} 31. Ng4+ {[%clk
0:01:54.2]} 31... Kh5 {[%clk 0:00:52.8]} 32. Nf6+ {[%clk 0:01:47]} 32... Kxh4
{[%clk 0:00:50.1]} 33. Rxh7+ {[%clk 0:01:44.9]} 33... Kg3 {[%clk 0:00:47.6]} 34.
Rh3+ {[%clk 0:01:40.2]} 34... Kf2 {[%clk 0:00:45.4]} 35. Ng4+ {[%clk 0:01:39.1]}
35... Kg1 {[%clk 0:00:41.1]} 36. Nf6 {[%clk 0:01:19.3]} 36... Bb5 {[%clk
0:00:31.4]} 37. Nd5 {[%clk 0:01:10.7]} 37... Rf8 {[%clk 0:00:24.6]} 38. Rg3
{[%clk 0:01:06.8]} 38... Kf2 {[%clk 0:00:19.5]} 39. Rxg6 {[%clk 0:01:04.5]}
39... Be2 {[%clk 0:00:13.7]} 40. Kd2 {[%clk 0:00:57.9]} 40... Bxf3 {[%clk
0:00:11.6]} 41. gxf3 {[%clk 0:00:57.8]} 41... Kxf3 {[%clk 0:00:10.6]} 42. Nf6
{[%clk 0:00:53.7]} 42... Kf4 {[%clk 0:00:07]} 43. Ke2 {[%clk 0:00:50.4]} 43...
Ke5 {[%clk 0:00:03.8]} 44. Ke3 {[%clk 0:00:46.4]} 44... Rxf6 {[%clk 0:00:00.6]}
45. Rg5+ {[%clk 0:00:43.4]} 1-0

[Event "Live Chess"]
[Site "Chess.com"]
[Date "2023.05.20"]
[Round "-"]
[White "mattihelenius2"]
[Black "wadsy27"]
[Result "0-1"]
[WhiteElo "489"]
[BlackElo "2564"]
[TimeControl "300"]
[EndTime "15:59:28 PDT"]
[Termination "wadsy27 won by resignation"]

1. d4 {[%clk 0:04:57.7]} 1... Nf6 {[%clk 0:04:58.3]} 2. c4 {[%clk 0:04:55.6]}
2... c5 {[%clk 0:04:56.6]} 3. e3 {[%clk 0:04:53.3]} 3... cxd4 {[%clk 0:04:54.4]}
4. Qxd4 {[%clk 0:04:42.9]} 4... Nc6 {[%clk 0:04:52.4]} 5. Qd2 {[%clk 0:04:39.5]}
5... e5 {[%clk 0:04:48.1]} 6. Nc3 {[%clk 0:04:37.3]} 6... Bb4 {[%clk 0:04:45.8]}
7. a3 {[%clk 0:04:34.7]} 7... Qa5 {[%clk 0:04:38.6]} 8. Nf3 {[%clk 0:04:17.4]}
8... Bxc3 {[%clk 0:04:35.4]} 9. bxc3 {[%clk 0:04:13.4]} 9... Ne4 {[%clk
0:04:33]} 10. Qc2 {[%clk 0:04:05.5]} 10... Qxc3+ {[%clk 0:04:24.5]} 11. Qxc3
{[%clk 0:04:00.4]} 11... Nxc3 {[%clk 0:04:24.4]} 12. Bd2 {[%clk 0:03:48.7]}
12... Ne4 {[%clk 0:04:10.7]} 13. Bb4 {[%clk 0:03:36.3]} 13... a5 {[%clk
0:04:06.6]} 14. Bc3 {[%clk 0:03:28.9]} 14... Nxc3 {[%clk 0:04:05.5]} 15. Rc1
{[%clk 0:03:27.1]} 15... Ne4 {[%clk 0:04:04.3]} 16. Bd3 {[%clk 0:03:22.9]} 16...
Nc5 {[%clk 0:04:03.4]} 17. O-O {[%clk 0:03:20.6]} 17... Nxd3 {[%clk 0:04:01.9]}
18. Rcd1 {[%clk 0:03:14.8]} 18... e4 {[%clk 0:04:00.8]} 19. Nd4 {[%clk
0:03:10.1]} 19... Nxd4 {[%clk 0:03:57.6]} 20. exd4 {[%clk 0:03:10]} 20... O-O
{[%clk 0:03:56.5]} 21. h3 {[%clk 0:03:07.7]} 21... d5 {[%clk 0:03:54.7]} 22.
cxd5 {[%clk 0:03:00.9]} 22... Rd8 {[%clk 0:03:53.7]} 23. Kh2 {[%clk 0:02:41.6]}
23... Rxd5 {[%clk 0:03:50.6]} 24. f3 {[%clk 0:02:37]} 24... Bf5 {[%clk
0:03:43.4]} 25. a4 {[%clk 0:02:33.1]} 25... Rxd4 {[%clk 0:03:40]} 26. fxe4
{[%clk 0:02:30]} 26... Bxe4 {[%clk 0:03:39.3]} 27. Rf4 {[%clk 0:02:22.8]} 27...
Nxf4 {[%clk 0:03:37.4]} 28. Rxd4 {[%clk 0:02:20.8]} 28... f5 {[%clk 0:03:37.3]}
29. g3 {[%clk 0:02:10.9]} 29... Ne6 {[%clk 0:03:35]} 30. Rd6 {[%clk 0:02:04.3]}
30... Kf7 {[%clk 0:03:33.4]} 31. Rd7+ {[%clk 0:02:01.9]} 31... Kf6 {[%clk
0:03:31.5]} 32. g4 {[%clk 0:01:58.4]} 32... fxg4 {[%clk 0:03:30]} 33. hxg4
{[%clk 0:01:56.9]} 33... Rd8 {[%clk 0:03:29.4]} 34. Rxb7 {[%clk 0:01:54.7]}
34... Bxb7 {[%clk 0:03:28]} 0-1

[Event "Live Chess"]
[Site "Chess.com"]
[Date "2023.05.20"]
[Round "-"]
[White "TheSmoulderingMaster"]
[Black "diana21strabt"]
[Result "0-1"]
[WhiteElo "1691"]
[BlackElo "1707"]
[TimeControl "300"]
[EndTime "15:59:29 PDT"]
[Termination "diana21strabt won by resignation"]

1. e4 {[%clk 0:04:57.4]} 1... d5 {[%clk 0:04:58.7]} 2. exd5 {[%clk 0:04:56.6]}
2... Qxd5 {[%clk 0:04:57.5]} 3. Nc3 {[%clk 0:04:55.1]} 3... Qa5 {[%clk
0:04:56.3]} 4. b4 {[%clk 0:04:52.9]} 4... Qxb4 {[%clk 0:04:54.7]} 5. Nb5 {[%clk
0:04:51.9]} 5... Qe4+ {[%clk 0:04:51]} 6. Be2 {[%clk 0:04:44.8]} 6... Na6 {[%clk
0:04:48.1]} 7. Nf3 {[%clk 0:04:39.6]} 7... Bd7 {[%clk 0:04:45.7]} 8. O-O {[%clk
0:04:36.9]} 8... Nf6 {[%clk 0:04:42.3]} 9. Re1 {[%clk 0:04:33.8]} 9... Qa4
{[%clk 0:04:22.9]} 10. Nc3 {[%clk 0:04:30]} 10... Qc6 {[%clk 0:04:20.7]} 11. Ne5
{[%clk 0:04:28.1]} 11... Qd6 {[%clk 0:04:19.5]} 12. d4 {[%clk 0:04:21.9]} 12...
e6 {[%clk 0:04:15.6]} 13. Bg5 {[%clk 0:04:14]} 13... Be7 {[%clk 0:04:13.7]} 14.
Bxf6 {[%clk 0:04:11.4]} 14... Bxf6 {[%clk 0:04:12.5]} 15. Ne4 {[%clk 0:04:11.3]}
15... Qe7 {[%clk 0:04:08.8]} 16. Nxf6+ {[%clk 0:04:09]} 16... gxf6 {[%clk
0:04:07.3]} 17. Ng4 {[%clk 0:04:05.3]} 17... Nb4 {[%clk 0:03:56.5]} 18. a3
{[%clk 0:03:59.7]} 18... Nd5 {[%clk 0:03:53.3]} 19. c4 {[%clk 0:03:58.2]} 19...
Nc3 {[%clk 0:03:50.9]} 20. Qd3 {[%clk 0:03:54.2]} 20... Nxe2+ {[%clk 0:03:49.4]}
21. Rxe2 {[%clk 0:03:53.5]} 21... Rg8 {[%clk 0:03:42.7]} 22. Qf3 {[%clk
0:03:51.8]} 22... Rxg4 {[%clk 0:03:26.2]} 23. Qxg4 {[%clk 0:03:50.2]} 23...
O-O-O {[%clk 0:03:25.6]} 24. Qg7 {[%clk 0:03:44.6]} 24... Qd6 {[%clk 0:03:20]}
25. Qxf7 {[%clk 0:03:39.1]} 25... Qxd4 {[%clk 0:03:17.4]} 26. Rae1 {[%clk
0:03:37]} 26... Qxc4 {[%clk 0:03:13.6]} 27. Qxf6 {[%clk 0:03:33.6]} 27... Rg8
{[%clk 0:03:05.7]} 28. g3 {[%clk 0:03:31]} 28... Qd5 {[%clk 0:02:57.3]} 29. Re5
{[%clk 0:03:26.9]} 29... Qd2 {[%clk 0:02:47.2]} 30. R5e2 {[%clk 0:03:20.2]}
30... Qd3 {[%clk 0:02:44.8]} 31. Re3 {[%clk 0:03:19.1]} 31... Qd2 {[%clk
0:02:42.7]} 32. Qf4 {[%clk 0:03:14.8]} 32... Qd5 {[%clk 0:02:34.3]} 33. Rc1
{[%clk 0:03:10.1]} 33... Bc6 {[%clk 0:02:30.6]} 34. f3 {[%clk 0:03:04.2]} 34...
Rd8 {[%clk 0:02:19]} 35. Qf7 {[%clk 0:02:53.7]} 35... Kb8 {[%clk 0:01:30.7]} 36.
Qxe6 {[%clk 0:02:48.9]} 36... Qd4 {[%clk 0:01:28.6]} 37. Qb3 {[%clk 0:02:39.6]}
37... Re8 {[%clk 0:01:21.7]} 38. Re1 {[%clk 0:02:32.7]} 38... Bxf3 {[%clk
0:01:18]} 39. Qf7 {[%clk 0:02:24.9]} 39... Rxe3 {[%clk 0:01:10.4]} 40. Qf8+
{[%clk 0:02:23.5]} 40... Re8+ {[%clk 0:01:08.6]} 41. Kf1 {[%clk 0:02:17.5]}
41... Rxf8 {[%clk 0:01:07.4]} 0-1